Workbook

Sheet Shrnutí měsíčního rozpočtu
B1: NÁZEV SPOLEČNOSTI
B2: MĚSÍČNÍ ROZPOČET | E2: Datum
B4: ROZPOČET CELKEM | C4: PŘEDPOKLÁDANÉ | D4: SKUTEČNÉ | E4: ROZDÍL
B5: Příjmy | C5: =Příjmy[[#Totals],[PŘEDPOKLÁDANÉ]] -> 63,300.00 | D5: =Příjmy[[#Totals],[SKUTEČNÉ]] -> 57,450.00 | E5: =Součty[[#This Row],[SKUTEČNÉ]]-Součty[[#This Row],[PŘEDPOKLÁDANÉ]] -> -5,850.00
B6: Výdaje | C6: =ProvozníVýdaje[[#Totals],[PŘEDPOKLÁDANÉ]]+VýdajeNaZaměstnance[[#Totals],[PŘEDPOKLÁDANÉ]] -> 54,500.00 | D6: =ProvozníVýdaje[[#Totals],[SKUTEČNÉ]]+VýdajeNaZaměstnance[[#Totals],[SKUTEČNÉ]] -> 49,630.00 | E6: =Součty[[#This Row],[PŘEDPOKLÁDANÉ]]-Součty[[#This Row],[SKUTEČNÉ]] -> 4,870.00
B7: Zůstatek (příjmy minus výdaje) | C7: =C5-C6 -> 8,800.00 | D7: =D5-D6 -> 7,820.00 | E7: =Součty[[#Totals],[SKUTEČNÉ]]-Součty[[#Totals],[PŘEDPOKLÁDANÉ]] -> -980.00
B10: CO TVOŘÍ 5 NEJVĚTŠÍCH PROVOZNÍCH VÝDAJŮ?
B11: VÝDAJE | C11: ČÁSTKA | D11: % Z VÝDAJŮ | E11: 15% SNÍŽENÍ
B12: =INDEX(ProvozníVýdaje[],MATCH(_5NejvětšíchVýdajů[[#This Row],[ČÁSTKA]],ProvozníVýdaje[5 NEJVĚTŠÍCH ČÁSTEK],0),1) -> Údržba a opravy | C12: =LARGE(ProvozníVýdaje[5 NEJVĚTŠÍCH ČÁSTEK],1) -> 4,600.00 | D12: =_5NejvětšíchVýdajů[[#This Row],[ČÁSTKA]]/$D$6 -> 9.3% | E12: =_5NejvětšíchVýdajů[[#This Row],[ČÁSTKA]]*0.15 -> 690.00
B13: =INDEX(ProvozníVýdaje[],MATCH(_5NejvětšíchVýdajů[[#This Row],[ČÁSTKA]],ProvozníVýdaje[5 NEJVĚTŠÍCH ČÁSTEK],0),1) -> Pomůcky | C13: =LARGE(ProvozníVýdaje[5 NEJVĚTŠÍCH ČÁSTEK],2) -> 4,500.00 | D13: =_5NejvětšíchVýdajů[[#This Row],[ČÁSTKA]]/$D$6 -> 9.1% | E13: =_5NejvětšíchVýdajů[[#This Row],[ČÁSTKA]]*0.15 -> 675.00
B14: =INDEX(ProvozníVýdaje[],MATCH(_5NejvětšíchVýdajů[[#This Row],[ČÁSTKA]],ProvozníVýdaje[5 NEJVĚTŠÍCH ČÁSTEK],0),1) -> Nájem nebo hypotéka | C14: =LARGE(ProvozníVýdaje[5 NEJVĚTŠÍCH ČÁSTEK],3) -> 4,500.00 | D14: =_5NejvětšíchVýdajů[[#This Row],[ČÁSTKA]]/$D$6 -> 9.1% | E14: =_5NejvětšíchVýdajů[[#This Row],[ČÁSTKA]]*0.15 -> 675.00
B15: =INDEX(ProvozníVýdaje[],MATCH(_5NejvětšíchVýdajů[[#This Row],[ČÁSTKA]],ProvozníVýdaje[5 NEJVĚTŠÍCH ČÁSTEK],0),1) -> Daně | C15: =LARGE(ProvozníVýdaje[5 NEJVĚTŠÍCH ČÁSTEK],4) -> 3,200.00 | D15: =_5NejvětšíchVýdajů[[#This Row],[ČÁSTKA]]/$D$6 -> 6.4% | E15: =_5NejvětšíchVýdajů[[#This Row],[ČÁSTKA]]*0.15 -> 480.00
B16: =INDEX(ProvozníVýdaje[],MATCH(_5NejvětšíchVýdajů[[#This Row],[ČÁSTKA]],ProvozníVýdaje[5 NEJVĚTŠÍCH ČÁSTEK],0),1) -> Reklama | C16: =LARGE(ProvozníVýdaje[5 NEJVĚTŠÍCH ČÁSTEK],5) -> 2,500.00 | D16: =_5NejvětšíchVýdajů[[#This Row],[ČÁSTKA]]/$D$6 -> 5.0% | E16: =_5NejvětšíchVýdajů[[#This Row],[ČÁSTKA]]*0.15 -> 375.00
B17: Celkem | C17: =SUBTOTAL(109,_5NejvětšíchVýdajů[ČÁSTKA]) -> 19,300.00 | D17: =SUBTOTAL(109,_5NejvětšíchVýdajů[% Z VÝDAJŮ]) -> 38.9% | E17: =SUBTOTAL(109,_5NejvětšíchVýdajů[15% SNÍŽENÍ]) -> 2,895.00

Sheet Příjmy
B1: =NÁZEV_SPOLEČNOSTI -> NÁZEV SPOLEČNOSTI
B2: =ROZPOČET_Název -> MĚSÍČNÍ ROZPOČET
B4: PŘÍJMY | C4: PŘEDPOKLÁDANÉ | D4: SKUTEČNÉ | E4: 5 NEJVĚTŠÍCH ČÁSTEK | F4: ROZDÍL
B5: Čistý prodej | C5: 60,000.00 | D5: 54,000.00 | E5: =Příjmy[[#This Row],[SKUTEČNÉ]]+(10^-6)*ROW(Příjmy[[#This Row],[SKUTEČNÉ]]) -> 54,000.00 | F5: =Příjmy[[#This Row],[SKUTEČNÉ]]-Příjmy[[#This Row],[PŘEDPOKLÁDANÉ]] -> -6,000.00
B6: Příjem z úroků | C6: 3,000.00 | D6: 3,000.00 | E6: =Příjmy[[#This Row],[SKUTEČNÉ]]+(10^-6)*ROW(Příjmy[[#This Row],[SKUTEČNÉ]]) -> 3,000.00 | F6: =Příjmy[[#This Row],[SKUTEČNÉ]]-Příjmy[[#This Row],[PŘEDPOKLÁDANÉ]] -> 0.00
B7: Prodej materiálů (zisk/ztráta) | C7: 300.00 | D7: 450.00 | E7: =Příjmy[[#This Row],[SKUTEČNÉ]]+(10^-6)*ROW(Příjmy[[#This Row],[SKUTEČNÉ]]) -> 450.00 | F7: =Příjmy[[#This Row],[SKUTEČNÉ]]-Příjmy[[#This Row],[PŘEDPOKLÁDANÉ]] -> 150.00
B8: Celkové příjmy | C8: =SUBTOTAL(109,Příjmy[PŘEDPOKLÁDANÉ]) -> 63,300.00 | D8: =SUBTOTAL(109,Příjmy[SKUTEČNÉ]) -> 57,450.00 | F8: =SUBTOTAL(109,Příjmy[ROZDÍL]) -> -5,850.00

Sheet Výdaje na zaměstnance
B1: =NÁZEV_SPOLEČNOSTI -> NÁZEV SPOLEČNOSTI
B2: =ROZPOČET_Název -> MĚSÍČNÍ ROZPOČET
B4: VÝDAJE NA ZAMĚSTNANCE | C4: PŘEDPOKLÁDANÉ | D4: SKUTEČNÉ | E4: 5 NEJVĚTŠÍCH ČÁSTEK | F4: ROZDÍL
B5: Mzdy | C5: 9,500.00 | D5: 9,600.00 | E5: =VýdajeNaZaměstnance[[#This Row],[SKUTEČNÉ]]+(10^-6)*ROW(VýdajeNaZaměstnance[[#This Row],[SKUTEČNÉ]]) -> 9,600.00 | F5: =VýdajeNaZaměstnance[[#This Row],[PŘEDPOKLÁDANÉ]]-VýdajeNaZaměstnance[[#This Row],[SKUTEČNÉ]] -> -100.00
B6: Zaměstnanecké benefity | C6: 4,000.00 | D6: 0.00 | E6: =VýdajeNaZaměstnance[[#This Row],[SKUTEČNÉ]]+(10^-6)*ROW(VýdajeNaZaměstnance[[#This Row],[SKUTEČNÉ]]) -> 0.00 | F6: =VýdajeNaZaměstnance[[#This Row],[PŘEDPOKLÁDANÉ]]-VýdajeNaZaměstnance[[#This Row],[SKUTEČNÉ]] -> 4,000.00
B7: Provize | C7: 5,000.00 | D7: 4,500.00 | E7: =VýdajeNaZaměstnance[[#This Row],[SKUTEČNÉ]]+(10^-6)*ROW(VýdajeNaZaměstnance[[#This Row],[SKUTEČNÉ]]) -> 4,500.00 | F7: =VýdajeNaZaměstnance[[#This Row],[PŘEDPOKLÁDANÉ]]-VýdajeNaZaměstnance[[#This Row],[SKUTEČNÉ]] -> 500.00
B8: Celkové výdaje na zaměstnance | C8: =SUBTOTAL(109,VýdajeNaZaměstnance[PŘEDPOKLÁDANÉ]) -> 18,500.00 | D8: =SUBTOTAL(109,VýdajeNaZaměstnance[SKUTEČNÉ]) -> 14,100.00 | F8: =SUBTOTAL(109,VýdajeNaZaměstnance[ROZDÍL]) -> 4,400.00

Sheet Provozní výdaje
B1: =NÁZEV_SPOLEČNOSTI -> NÁZEV SPOLEČNOSTI
B2: =ROZPOČET_Název -> MĚSÍČNÍ ROZPOČET
B4: PROVOZNÍ VÝDAJE | C4: PŘEDPOKLÁDANÉ | D4: SKUTEČNÉ | E4: 5 NEJVĚTŠÍCH ČÁSTEK | F4: ROZDÍL
B5: Reklama | C5: 3,000.00 | D5: 2,500.00 | E5: =ProvozníVýdaje[[#This Row],[SKUTEČNÉ]]+(10^-6)*ROW(ProvozníVýdaje[[#This Row],[SKUTEČNÉ]]) -> 2,500.00 | F5: =ProvozníVýdaje[[#This Row],[PŘEDPOKLÁDANÉ]]-ProvozníVýdaje[[#This Row],[SKUTEČNÉ]] -> 500.00
B6: Nedobytné pohledávky | C6: 2,000.00 | D6: 2,000.00 | E6: =ProvozníVýdaje[[#This Row],[SKUTEČNÉ]]+(10^-6)*ROW(ProvozníVýdaje[[#This Row],[SKUTEČNÉ]]) -> 2,000.00 | F6: =ProvozníVýdaje[[#This Row],[PŘEDPOKLÁDANÉ]]-ProvozníVýdaje[[#This Row],[SKUTEČNÉ]] -> 0.00
B7: Platební slevy | C7: 1,500.00 | D7: 2,175.00 | E7: =ProvozníVýdaje[[#This Row],[SKUTEČNÉ]]+(10^-6)*ROW(ProvozníVýdaje[[#This Row],[SKUTEČNÉ]]) -> 2,175.00 | F7: =ProvozníVýdaje[[#This Row],[PŘEDPOKLÁDANÉ]]-ProvozníVýdaje[[#This Row],[SKUTEČNÉ]] -> -675.00
B8: Náklady na doručení | C8: 2,000.00 | D8: 1,500.00 | E8: =ProvozníVýdaje[[#This Row],[SKUTEČNÉ]]+(10^-6)*ROW(ProvozníVýdaje[[#This Row],[SKUTEČNÉ]]) -> 1,500.00 | F8: =ProvozníVýdaje[[#This Row],[PŘEDPOKLÁDANÉ]]-ProvozníVýdaje[[#This Row],[SKUTEČNÉ]] -> 500.00
B9: Odpisy | C9: 1,000.00 | D9: 1,000.00 | E9: =ProvozníVýdaje[[#This Row],[SKUTEČNÉ]]+(10^-6)*ROW(ProvozníVýdaje[[#This Row],[SKUTEČNÉ]]) -> 1,000.00 | F9: =ProvozníVýdaje[[#This Row],[PŘEDPOKLÁDANÉ]]-ProvozníVýdaje[[#This Row],[SKUTEČNÉ]] -> 0.00
B10: Členské příspěvky a předplatná | C10: 500.00 | D10: 525.00 | E10: =ProvozníVýdaje[[#This Row],[SKUTEČNÉ]]+(10^-6)*ROW(ProvozníVýdaje[[#This Row],[SKUTEČNÉ]]) -> 525.00 | F10: =ProvozníVýdaje[[#This Row],[PŘEDPOKLÁDANÉ]]-ProvozníVýdaje[[#This Row],[SKUTEČNÉ]] -> -25.00
B11: Pojištění | C11: 1,300.00 | D11: 1,275.00 | E11: =ProvozníVýdaje[[#This Row],[SKUTEČNÉ]]+(10^-6)*ROW(ProvozníVýdaje[[#This Row],[SKUTEČNÉ]]) -> 1,275.00 | F11: =ProvozníVýdaje[[#This Row],[PŘEDPOKLÁDANÉ]]-ProvozníVýdaje[[#This Row],[SKUTEČNÉ]] -> 25.00
B12: Úroky | C12: 2,000.00 | D12: 2,200.00 | E12: =ProvozníVýdaje[[#This Row],[SKUTEČNÉ]]+(10^-6)*ROW(ProvozníVýdaje[[#This Row],[SKUTEČNÉ]]) -> 2,200.00 | F12: =ProvozníVýdaje[[#This Row],[PŘEDPOKLÁDANÉ]]-ProvozníVýdaje[[#This Row],[SKUTEČNÉ]] -> -200.00
B13: Právní služby a auditování | C13: 1,000.00 | D13: 800.00 | E13: =ProvozníVýdaje[[#This Row],[SKUTEČNÉ]]+(10^-6)*ROW(ProvozníVýdaje[[#This Row],[SKUTEČNÉ]]) -> 800.00 | F13: =ProvozníVýdaje[[#This Row],[PŘEDPOKLÁDANÉ]]-ProvozníVýdaje[[#This Row],[SKUTEČNÉ]] -> 200.00
B14: Údržba a opravy | C14: 4,500.00 | D14: 4,600.00 | E14: =ProvozníVýdaje[[#This Row],[SKUTEČNÉ]]+(10^-6)*ROW(ProvozníVýdaje[[#This Row],[SKUTEČNÉ]]) -> 4,600.00 | F14: =ProvozníVýdaje[[#This Row],[PŘEDPOKLÁDANÉ]]-ProvozníVýdaje[[#This Row],[SKUTEČNÉ]] -> -100.00
B15: Kancelářské potřeby | C15: 800.00 | D15: 750.00 | E15: =ProvozníVýdaje[[#This Row],[SKUTEČNÉ]]+(10^-6)*ROW(ProvozníVýdaje[[#This Row],[SKUTEČNÉ]]) -> 750.00 | F15: =ProvozníVýdaje[[#This Row],[PŘEDPOKLÁDANÉ]]-ProvozníVýdaje[[#This Row],[SKUTEČNÉ]] -> 50.00
B16: Poštovné | C16: 400.00 | D16: 350.00 | E16: =ProvozníVýdaje[[#This Row],[SKUTEČNÉ]]+(10^-6)*ROW(ProvozníVýdaje[[#This Row],[SKUTEČNÉ]]) -> 350.00 | F16: =ProvozníVýdaje[[#This Row],[PŘEDPOKLÁDANÉ]]-ProvozníVýdaje[[#This Row],[SKUTEČNÉ]] -> 50.00
B17: Nájem nebo hypotéka | C17: 4,100.00 | D17: 4,500.00 | E17: =ProvozníVýdaje[[#This Row],[SKUTEČNÉ]]+(10^-6)*ROW(ProvozníVýdaje[[#This Row],[SKUTEČNÉ]]) -> 4,500.00 | F17: =ProvozníVýdaje[[#This Row],[PŘEDPOKLÁDANÉ]]-ProvozníVýdaje[[#This Row],[SKUTEČNÉ]] -> -400.00
B18: Prodejní náklady | C18: 350.00 | D18: 400.00 | E18: =ProvozníVýdaje[[#This Row],[SKUTEČNÉ]]+(10^-6)*ROW(ProvozníVýdaje[[#This Row],[SKUTEČNÉ]]) -> 400.00 | F18: =ProvozníVýdaje[[#This Row],[PŘEDPOKLÁDANÉ]]-ProvozníVýdaje[[#This Row],[SKUTEČNÉ]] -> -50.00
B19: Přeprava a skladování | C19: 900.00 | D19: 840.00 | E19: =ProvozníVýdaje[[#This Row],[SKUTEČNÉ]]+(10^-6)*ROW(ProvozníVýdaje[[#This Row],[SKUTEČNÉ]]) -> 840.00 | F19: =ProvozníVýdaje[[#This Row],[PŘEDPOKLÁDANÉ]]-ProvozníVýdaje[[#This Row],[SKUTEČNÉ]] -> 60.00
B20: Pomůcky | C20: 5,000.00 | D20: 4,500.00 | E20: =ProvozníVýdaje[[#This Row],[SKUTEČNÉ]]+(10^-6)*ROW(ProvozníVýdaje[[#This Row],[SKUTEČNÉ]]) -> 4,500.00 | F20: =ProvozníVýdaje[[#This Row],[PŘEDPOKLÁDANÉ]]-ProvozníVýdaje[[#This Row],[SKUTEČNÉ]] -> 500.00
B21: Daně | C21: 3,000.00 | D21: 3,200.00 | E21: =ProvozníVýdaje[[#This Row],[SKUTEČNÉ]]+(10^-6)*ROW(ProvozníVýdaje[[#This Row],[SKUTEČNÉ]]) -> 3,200.00 | F21: =ProvozníVýdaje[[#This Row],[PŘEDPOKLÁDANÉ]]-ProvozníVýdaje[[#This Row],[SKUTEČNÉ]] -> -200.00
B22: Telefony | C22: 250.00 | D22: 280.00 | E22: =ProvozníVýdaje[[#This Row],[SKUTEČNÉ]]+(10^-6)*ROW(ProvozníVýdaje[[#This Row],[SKUTEČNÉ]]) -> 280.00 | F22: =ProvozníVýdaje[[#This Row],[PŘEDPOKLÁDANÉ]]-ProvozníVýdaje[[#This Row],[SKUTEČNÉ]] -> -30.00
B23: Služby | C23: 1,400.00 | D23: 1,385.00 | E23: =ProvozníVýdaje[[#This Row],[SKUTEČNÉ]]+(10^-6)*ROW(ProvozníVýdaje[[#This Row],[SKUTEČNÉ]]) -> 1,385.00 | F23: =ProvozníVýdaje[[#This Row],[PŘEDPOKLÁDANÉ]]-ProvozníVýdaje[[#This Row],[SKUTEČNÉ]] -> 15.00
B24: Jiné | C24: 1,000.00 | D24: 750.00 | E24: =ProvozníVýdaje[[#This Row],[SKUTEČNÉ]]+(10^-6)*ROW(ProvozníVýdaje[[#This Row],[SKUTEČNÉ]]) -> 750.00 | F24: =ProvozníVýdaje[[#This Row],[PŘEDPOKLÁDANÉ]]-ProvozníVýdaje[[#This Row],[SKUTEČNÉ]] -> 250.00
B25: Celkové provozní výdaje | C25: =SUBTOTAL(109,ProvozníVýdaje[PŘEDPOKLÁDANÉ]) -> 36,000.00 | D25: =SUBTOTAL(109,ProvozníVýdaje[SKUTEČNÉ]) -> 35,530.00 | F25: =SUBTOTAL(109,ProvozníVýdaje[ROZDÍL]) -> 470.00
